Cogmind - Beta 13 @@@ ROGUE MODE // 2024.03.11 @ 05:32:49 // Winter2019/RPGLIKE Player: H3-RMN Result: Destroyed self via exploding Compression Vault Performance ------------- Evolutions (0) 0 Regions Visited (4) 800 Robots Destroyed (52) 260 Value Destroyed (1566) 1566 Prototype IDs (11) 220 Alien Tech Used (0) 0 Bonus (-7) -7 TOTAL SCORE: 2839 Bonus ------- Friendly Fire -7 Cogmind --------- Core Integrity 0/600 Matter 300/300 Energy 315/320 System Corruption 1% Temperature Cool (0) Movement Walking (130) Location -8/Recycling Parts ------- > --- POWER (1+1) ------ Ion Engine (fused) Makeshift Power Source (+) > --- PROPULSION (2) --- Cargo Legs > --- UTILITY (4+2) ---- Experimental Sensor Array Armor Integrity Analyzer Scrap Shield > --- WEAPON (3) ------- Powered Cannon Makeshift Axe > --- INVENTORY (2) ---- Phase Shifter Piercing Trap Peak State ------------ > --- POWER ------------ Ion Engine Makeshift Power Source > --- PROPULSION ------- Cargo Legs > --- UTILITY ---------- Experimental Sensor Array Armor Integrity Analyzer Scrap Shield > --- WEAPON ----------- Powered Cannon Makeshift Axe > --- INVENTORY -------- Phase Shifter Piercing Trap [Rating: 56] Favorites ----------- Power Ion Engine Engine Ion Engine Propulsion Aluminum Leg Leg Aluminum Leg Utility Experimental Sensor Array Device Experimental Sensor Array Processor Armor Integrity Analyzer Protection Scrap Shield Weapon Makeshift Axe Energy Gun EM Pulse Gun Energy Cannon Powered Cannon Ballistic Gun Assault Rifle Ballistic Cannon Light Cannon Launcher Grenade Launcher Slashing Weapon Makeshift Axe Build | -11 -10 -10 -10 -8 ------- Run | Yrd Mat Min Sub Rec Slots Evolved 6 | 3 2 . 1 . Power . | . . . . . Propulsion 1 | 1 . . . . Utility 3 | 1 1 . 1 . Weapon 2 | 1 1 . . . Parts Attached 31 | 7 8 5 11 . Power 2 | 1 . . 1 . Engine 2 | 1 . . 1 . Core . | . . . . . Reactor . | . . . . . Propulsion 3 | 2 . . 1 . Treads . | . . . . . Leg 3 | 2 . . 1 . Wheel . | . . . . . Hover . | . . . . . Flight . | . . . . . Utility 11 | 2 3 2 4 . Device 6 | 2 1 2 1 . Storage . | . . . . . Processor 2 | . 1 . 1 . Hackware . | . . . . . Protection 3 | . 1 . 2 . Artifact . | . . . . . Weapon 15 | 2 5 3 5 . Energy Gun 2 | 1 . . 1 . Energy Cannon 2 | . 1 . 1 . Ballistic Gun 5 | 1 3 . 1 . Ballistic Cannon 3 | . 1 1 1 . Launcher 2 | . . 1 1 . Special Weapon . | . . . . . Impact Weapon . | . . . . . Slashing Weapon 1 | . . 1 . . Piercing Weapon . | . . . . . Special Melee Weapon . | . . . . . Unidentified Prototypes 2 | . . 1 1 . Corrupted Parts 1 | . 1 . . . System Corruption 1 | . 1 . . . Parts Lost . | . . . . . Power . | . . . . . Propulsion . | . . . . . Utility . | . . . . . Weapon . | . . . . . Highest Loss Streak . | . . . . . To Critical Strikes . | . . . . . Average Slot Usage (%) 86 | . 95 99 80 61 Engine 12 | . 12 11 12 15 Leg 19 | . 25 22 16 7 Device 13 | . 15 19 10 7 Processor 6 | . 2 1 8 7 Protection 9 | . 10 11 9 7 Energy Cannon 3 | . . . 4 7 Ballistic Gun 7 | . 22 10 3 . Ballistic Cannon 1 | . 1 6 1 . Launcher 4 | . . 10 4 . Slashing Weapon 6 | . . 5 9 7 Naked Turns . | . . . . . Heaviest Build 40 | 11 16 17 40 40 Greatest Support 60 | 25 25 25 60 60 Greatest Overweight (x) 4 | . . . 4 . Average Overweight (x) . | . . . . . Largest Inventory Capacity 2 | 2 2 2 2 2 Average Capacity 2 | 2 2 2 2 2 Most Carried 2 | . 2 2 2 2 Average Carried 1 | . 1 1 1 2 Final Capacity 2 | 2 2 2 2 2 Final Carried 2 | . 2 1 2 2 Class Distribution -------------------- 88% | Mutant 6% | Skirmisher 4% | Tank Dominant Class ---------------- Mutant | -10/Materials Mutant | -10/Mines Mutant | -10/Subcaves Mutant | -8/Recycling Resources | -11 -10 -10 -10 -8 ----------- Run | Yrd Mat Min Sub Rec Matter Collected 1122 | 287 248 191 383 13 Remotely . | . . . . . Salvage Created 1786 | 156 482 40 1024 84 Parts 119 | 13 30 5 70 1 Haulers Intercepted . | . . . . . Recyclers Shooed 2 | 1 1 . . . Parts Field Recycled . | . . . . . Retrieved Matter . | . . . . . Parts Self-Destructed 20 | . . . 20 . Prevented . | . . . . . Kills | -11 -10 -10 -10 -8 ------- Run | Yrd Mat Min Sub Rec Combat Hostiles Destroyed 45 | . 8 8 28 1 Melee 10 | . . . 9 1 Guns 15 | . 8 5 2 . Cannons 6 | . . . 6 . AOE 13 | . . 3 10 . Classes Destroyed 10 | 2 3 1 4 . Tunneler 4 | 4 . . . . Recycler 4 | 1 3 . . . Operator 2 | . 2 . . . Turret 2 | . . . 2 . Swarmer 10 | . 3 3 4 . Grunt 7 | . 5 . 2 . Sentry 3 | . . . 2 1 Artisan 1 | . . . 1 . Subdweller 20 | . . . 20 . Assembled 5 | . . 5 . . Best Kill Streak 5 | 5 2 3 5 1 Combat Bots Only 4 | . 2 3 4 1 Max Kills in Single Turn 4 | 1 1 3 4 1 Gunslinging . | . . . . . Exploded 4 | . . 3 4 . Melee 1 | . . . 1 1 Uniques/NPCs Destroyed . | . . . . . Combat | -11 -10 -10 -10 -8 -------- Run | Yrd Mat Min Sub Rec Hostile Shots Fired 199 | . 40 20 131 8 Missed 76 | . 9 6 60 1 Damage Taken 2186 | . 391 222 1421 152 Core 1421 | . 290 176 851 104 Absorbed by Shields . | . . . . . Redirected to Core 1218 | . 232 141 741 104 Core Remaining (%) 100 | 100 . . . . Volleys Fired 144 | 10 47 21 66 . Largest 2 | 1 2 2 1 . Hottest 60 | 20 60 40 50 . Shots Fired 207 | 10 89 40 68 . Gun 162 | 10 86 38 28 . Cannon 26 | . 3 . 23 . Launcher 19 | . . 2 17 . Special . | . . . . . Kinetic 139 | 10 66 38 25 . Thermal 21 | . 2 . 19 . Explosive 19 | . . 2 17 . Electromagnetic 28 | . 21 . 7 . Robot Hit Streak 14 | 7 13 10 14 . Robot Miss Streak 3 | 1 3 3 2 . Penetration Max . | . . . . . Secondary Targets 2 | . 1 1 . . Max Gunslinging Chain 1 | . 1 1 . . Shots Hit Robots 150 | 9 51 21 63 6 Core Hits 88 | 6 23 13 45 1 Critical Kills 1 | . . . 1 . Critical Parts Destroyed . | . . . . . Critical Strikes 2 | . 1 . 1 . Meltdown 1 | . . . 1 . Corrupt 1 | . 1 . . . Melee Attacks 59 | . . 3 46 10 Impact . | . . . . . Slashing 59 | . . 3 46 10 Piercing . | . . . . . Sneak Attacks 2 | . . . 1 1 Combat Hostiles 1 | . . . . 1 Follow-up Attacks . | . . . . . Damage Inflicted 4016 | 113 596 320 2743 244 Guns 1469 | 113 596 265 495 . Cannons 416 | . . . 416 . Explosions 1000 | . . 55 945 . Melee 1131 | . . . 887 244 Ramming . | . . . . . Kinetic 1223 | 113 440 265 405 . Thermal 372 | . . . 372 . Explosive 1000 | . . 55 945 . Electromagnetic 290 | . 156 . 134 . Impact . | . . . . . Slashing 1131 | . . . 887 244 Piercing . | . . . . . Highest Corruption 1 | . 1 1 1 1 Average Corruption 1 | . 1 1 1 1 Corruption Purged . | . . . . . Corruption Blocked . | . . . . . Effects 37 | . 3 6 25 3 Message Errors 5 | . . 1 2 2 Matter Fused 6 | . . 1 4 1 Heat Flow Errors 8 | . 1 2 5 . Energy Discharges 3 | . . 1 2 . Parts Fused 1 | . . . 1 . Data Loss (minor) 8 | . 1 1 6 . Data Loss (major) 1 | . 1 . . . Misfires 3 | . . . 3 . Alerts 1 | . . . 1 . Weapon Failures 1 | . . . 1 . Overload Shots . | . . . . . Overflow Damage 11 | . . . 11 . Projectiles 1 | . . . 1 . Explosions . | . . . . . Melee 10 | . . . 10 . Knockbacks . | . . . . . Impact . | . . . . . Kinetic . | . . . . . Secondary . | . . . . . Self-Inflicted Damage 155 | . . . 81 74 Shots 4 | . . . 3 1 Rammed . | . . . . . Targets Rammed . | . . . . . Kicked . | . . . . . Crushed . | . . . . . Highest Temperature 272 | . 239 272 260 1 Average Temperature 53 | . 31 81 79 1 Received Heat Transfer 622 | . 186 100 300 36 Siege Activations . | . . . . . Robots Corrupted . | . . . . . Combat Hostiles . | . . . . . Parts Fried . | . . . . . Impact Corruptions . | . . . . . Robots Melted 1 | . . . 1 . Combat Hostiles 1 | . . . 1 . Parts Melted . | . . . . . Heat Transferred . | . . . . . Parts Sabotaged . | . . . . . Parts Stolen . | . . . . . Parts Stripped . | . . . . . Power Chain Reactions . | . . . . . Alert | -11 -10 -10 -10 -8 ------- Run | Yrd Mat Min Sub Rec Peak Influence 378 | 25 378 122 . 377 Initial 267 | . 16 25 . 267 Average 102 | 8 153 27 . 320 Maximum Alert Level 1 | . 1 . . 1 Low Security (%) 82 | 100 76 100 . . Level 1 17 | . 23 . . 100 Level 2 . | . . . . . Level 3 . | . . . . . Level 4 . | . . . . . Level 5 . | . . . . . High Security . | . . . . . Max Security . | . . . . . Squads Dispatched 3 | . 3 . . . Investigation 2 | . 2 . . . Extermination . | . . . . . Reinforcement 1 | . 1 . . . Assault . | . . . . . Garrison . | . . . . . Intercept . | . . . . . Searches Triggered . | . . . . . Construction Impeded . | . . . . . Haulers Reinforced . | . . . . . Active Scanning Responses . | . . . . . Cargo Convoy Interrupts . | . . . . . Stealth | -11 -10 -10 -10 -8 --------- Run | Yrd Mat Min Sub Rec Distress Signals 2 | . 2 . . . Communications Jammed . | . . . . . Distress Signals . | . . . . . Times Spotted 94 | . 24 19 50 1 Peak Tracking Total 6 | . 4 4 6 2 Tactical Retreats 9 | . 2 3 4 . Traps | -11 -10 -10 -10 -8 ------- Run | Yrd Mat Min Sub Rec Traps Triggered 2 | . . . 2 . Indirectly . | . . . . . Trap Hack Attempts . | . . . . . Triggered . | . . . . . Disarmed . | . . . . . Reprogrammed . | . . . . . Reused . | . . . . . Traps Extracted . | . . . . . Installed . | . . . . . Triggered 2 | . . . 2 . Most Traps Carried 1 | . . . 1 1 Machines | -11 -10 -10 -10 -8 ---------- Run | Yrd Mat Min Sub Rec Machines Disabled 14 | . 5 3 3 3 Max in Single Turn 1 | . 1 1 1 1 Machines Repaired . | . . . . . Machines Dismantled . | . . . . . Machines Sabotaged . | . . . . . Overloaded Fab Kills . | . . . . . Hacking | -11 -10 -10 -10 -8 --------- Run | Yrd Mat Min Sub Rec Machines Accessed 14 | . 10 . 2 2 Terminals 7 | . 7 . . . Fabricators . | . . . . . Repair Stations 1 | . 1 . . . Recycling Units 4 | . 2 . . 2 Scanalyzers . | . . . . . Garrison Access . | . . . . . Total Hacks 45 | . 35 . 5 5 Successful 33 | . 23 . 5 5 Failed 11 | . 11 . . . Catastrophic 1 | . 1 . . . Database Lockouts 1 | . 1 . . . Manual 20 | . 18 . . 2 Terminals 28 | . 28 . . . Fabricators . | . . . . . Repair Stations 2 | . 2 . . . Recycling Units 10 | . 5 . . 5 Scanalyzers . | . . . . . Garrison Access . | . . . . . Terminal Hacks 18 | . 13 . 5 . Record 4 | . . . 4 . Robot Analysis 1 | . 1 . . . Branch Access Points 1 | . 1 . . . Terminal Index 1 | . 1 . . . Alert Level 1 | . 1 . . . Unreport Threat 1 | . 1 . . . Locate Traps 2 | . 2 . . . Hauler Manifests 1 | . 1 . . . Zone Layout 5 | . 5 . . . Derelict Proto ID Bank 1 | . . . 1 . Fabricator Hacks . | . . . . . Repair Station Hacks 1 | . 1 . . . Refit 1 | . 1 . . . Recycling Unit Hacks 6 | . 3 . . 3 Report Inventory 4 | . 2 . . 2 Retrieve Components 2 | . 1 . . 1 Scanalyzer . | . . . . . Garrison Access Hacks . | . . . . . Unauthorized Hacks 8 | . 6 . . 2 Terminals 4 | . 4 . . . Track 2 | . 2 . . . Botnet 1 | . 1 . . . Operators 1 | . 1 . . . Fabricators . | . . . . . Repair Stations . | . . . . . Recycling Units 4 | . 2 . . 2 Tunnel 4 | . 2 . . 2 Scanalyzers . | . . . . . Garrison Access . | . . . . . Data Cores Recovered 1 | . 1 . . . Used 1 | . 1 . . . Hacking Detections 8 | . 7 . . 1 Full Trace Events 1 | . 1 . . . Feedback Events . | . . . . . Feedback Blocked . | . . . . . Robot Schematics Acquired . | . . . . . Robots Built . | . . . . . Authchips . | . . . . . Time . | . . . . . Total Robot Build Rating . | . . . . . Part Schematics Acquired . | . . . . . Parts Built . | . . . . . Authchips . | . . . . . Time . | . . . . . Total Part Build Rating . | . . . . . Parts Repaired . | . . . . . Time . | . . . . . Parts Recycled . | . . . . . Recycled Matter . | . . . . . Retrieved Matter . | . . . . . Retrieved Components 7 | . 6 . . 1 Parts Scanalyzed . | . . . . . Part Schematics Acquired . | . . . . . Parts Damaged . | . . . . . Bothacking | -11 -10 -10 -10 -8 ------------ Run | Yrd Mat Min Sub Rec Used RIF Installer . | . . . . . Robots Hacked . | . . . . . Non-combat . | . . . . . Combat . | . . . . . Robot Hacks Applied . | . . . . . Relay Couplers Released . | . . . . . Fabnet Peak Effective % . | . . . . . Robots Rewired . | . . . . . Allies Hacked . | . . . . . Hacks Repelled . | . . . . . Allies | -11 -10 -10 -10 -8 -------- Run | Yrd Mat Min Sub Rec Total Allies . | . . . . . Largest Group . | . . . . . Highest-Rated Group . | . . . . . Highest-Rated Ally . | . . . . . Total Orders . | . . . . . Ally Attacks . | . . . . . Total Damage . | . . . . . Kills . | . . . . . Allies Corrupted . | . . . . . Allies Melted . | . . . . . Intel | -11 -10 -10 -10 -8 ------- Run | Yrd Mat Min Sub Rec Robot Analysis Total 1 | . 1 . . . Derelict Logs Recovered 4 | . . 1 3 . Drone Launches . | . . . . . Drone Recoveries . | . . . . . Exploration | -11 -10 -10 -10 -8 ------------- Run | Yrd Mat Min Sub Rec Turns Passed 5311 | 80 949 899 3255 128 Spaces Moved 3157 | 45 633 626 1769 84 Core 7 | 6 . . 1 . Treads . | . . . . . Legs 3150 | 39 633 626 1768 84 Wheels . | . . . . . Hover . | . . . . . Flight . | . . . . . Fastest Speed 50 | 50 120 120 120 130 Average Speed 143 | 110 120 120 161 130 Slowest Speed 250 | 120 120 120 250 130 Overloaded Moves . | . . . . . Propulsion Burnouts . | . . . . . Robots Hopped . | . . . . . Cave-ins Triggered . | . . . . . Exploration Rate (%) 63 | 4 94 95 93 30 Regions Visited 4 Branch Regions 3 Pre-discovered Areas 7 | . 2 1 2 2 Known Exits Taken 1 | . 1 . . . Unknown Exits Taken 3 | 1 . 1 1 . Scrap Searched 13 | . . 1 12 . Spaces Dug 30 | . . . 30 . Terrain Destroyed 114 | . . 11 103 . Melee 5 | . . . 5 . Projectile 5 | . . . 5 . AOE 104 | . . 11 93 . Terrain Rammed . | . . . . . Walls Destroyed . | . . . . . Machines Disabled . | . . . . . Actions | -11 -10 -10 -10 -8 --------- Run | Yrd Mat Min Sub Rec Total 3677 | 61 740 731 2051 94 Wait 196 | . 22 65 109 . Move 3153 | 44 632 625 1768 84 Hop . | . . . . . Pick Up 9 | . 5 1 3 . Fast Attach 25 | 7 6 3 9 . Attach 3 | . . 1 2 . Detach 3 | . . . 3 . Swap 3 | . 2 1 . . Drop 27 | . 10 5 12 . Fire 144 | 10 47 21 66 . Melee 59 | . . 3 46 10 Ram . | . . . . . Kick . | . . . . . Crush . | . . . . . Escape Stasis . | . . . . . Rewire . | . . . . . Trap . | . . . . . Miscellaneous 55 | . 16 6 33 . Route ------- -11/Scrapyard -10/Materials (discovered 4 exits: [*Mat x2] / *Min x2) -10/Mines (discovered 3 exits: [*Mat x2] / *Sub) -10/Subcaves (discovered 3 exits: [*Mat x2] / *Rec) -8/Recycling History --------- Turn | Location | Event 1 | -11/Scrapyard | Upgraded with Propulsion slot (x1) 1 | -11/Scrapyard | Upgraded with Utility slot (x1) 1 | -11/Scrapyard | Upgraded with Weapon slot (x1) 3 | -11/Scrapyard | Discovered new exit (range 16) 81 | -11/Scrapyard | Entered Materials 81 | -10/Materials | Discovered new exit (range 14) 104 | -10/Materials | Central database locked down 171 | -10/Materials | Identified exit to Mines 309 | -10/Materials | Build established: Mutant 380 | -10/Materials | Discovered new exit (range 12) 661 | -10/Materials | Reached level 2 661 | -10/Materials | Upgraded with Utility slot (x1) 661 | -10/Materials | Upgraded with Weapon slot (x1) 696 | -10/Materials | Discovered new exit (range 17) 1030 | -10/Materials | Entered Mines 1066 | -10/Mines | Assembled infested the area 1071 | -10/Mines | Assisted by a Guerilla fighting off Assembled 1082 | -10/Mines | Found a damaged Exp. Sensor Array with a note attached 1085 | -10/Mines | Found Prototype Device 1085 | -10/Mines | Identified Exp. Sensor Array 1137 | -10/Mines | Build established: Skirmisher 1235 | -10/Mines | Discovered new exit (range 9) 1272 | -10/Mines | Discovered new exit (range 16) 1466 | -10/Mines | A weapon hastily lodged in a ceiling crevice suddenly fell to the ground 1768 | -10/Mines | Build established: Mutant 1927 | -10/Mines | Discovered new exit (range 3) 1929 | -10/Mines | Entered Subcaves 1931 | -10/Subcaves | Reached level 3 2031 | -10/Subcaves | Disturbed a concealed Subdweller 2038 | -10/Subcaves | Learned Materials terminal intel 2074 | -10/Subcaves | Discovered new exit (range 17) 2097 | -10/Subcaves | Shifting Twisted Machinery released Humpback 2146 | -10/Subcaves | Upgraded with Utility slot (x1) 2237 | -10/Subcaves | Shifting Twisted Machinery released Hvy. Battle Rifle 2398 | -10/Subcaves | Shifting Twisted Machinery released Scrap Shield 2398 | -10/Subcaves | Shifting Twisted Machinery released Riot Gun 2445 | -10/Subcaves | Reached level 4 2497 | -10/Subcaves | Discovered new exit (range 14) 2799 | -10/Subcaves | Ambushed by Subdweller buried in earth 2910 | -10/Subcaves | Ambushed by Subdweller buried in earth 2977 | -10/Subcaves | Discovered new exit (range 11) 2993 | -10/Subcaves | Learned location of Zion (-6) 2993 | -10/Subcaves | Met a Zionite searching for "candidates" 3075 | -10/Subcaves | Core integrity fell below 50% 3310 | -10/Subcaves | A Subdweller sparked back to life 3310 | -10/Subcaves | A Subdweller sparked back to life 3349 | -10/Subcaves | Found Prototype Energy Cannon 3349 | -10/Subcaves | Identified Powered Cannon 3350 | -10/Subcaves | Attached Powered Cannon, gained temporary slot: Power 3494 | -10/Subcaves | Ambushed by Subdwellers from Twisted Machinery 3720 | -10/Subcaves | A swath of the cavern ceiling suddenly collapsed 4154 | -10/Subcaves | A swath of the cavern ceiling suddenly collapsed 4269 | -10/Subcaves | Shifting Twisted Machinery released Sub. Power Source 4285 | -10/Subcaves | Shifting Twisted Machinery released Piercing Trap 4515 | -10/Subcaves | Learned Materials emergency access door positions 4538 | -10/Subcaves | Visited 4L-MR0's lab 4562 | -10/Subcaves | Found Cargo Legs 4563 | -10/Subcaves | Attached Cargo Legs, gained temporary slots: Utility x2 4666 | -10/Subcaves | Visited Clippyterm 4670 | -10/Subcaves | Learned Factory emergency access door positions 4736 | -10/Subcaves | Core integrity fell below 20% 5184 | -10/Subcaves | Entered Recycling 5188 | -8/Recycling | Reached level 5 5312 | -8/Recycling | Destroyed self via exploding Compression Vault Last Messages --------------- 05188_ Reached level 5. >>Force(Tunnel) DISCOVERED[-5/Hub_04(d)] 05195_ System corrupted: Matter fused (-5). 05221_ Transfer Shaft disabled. 05234_ DXUP=#SYPW:%G0 RYOBU9 QB&5A7P 05283_ Sneak attack on Y-45 Defender. 05284_ Y-45 Defender springs to life. 05293_ Destroyed Lgt. Armor Plating. 05295_ Y-45 Defender destroyed. 05297_ Acquired 13 matter. 05299_ R-06 Scavenger collects Lgt. Treads. 05300_ S9CAMEJ8%<8WR1CU NEW7F 05308_ Connecting with Recycling Unit... >>Recycling(Report) Matter reserves: 0 Inventory: Empty >>Force(Tunnel) DISCOVERED[-4/Factory] 05312_ Compression Vault explodes. Map ----- +----------------------------------------------------+ | ???????????#######+###### #????????????# #??? | | ????????????????# #?????????#####+###+#### | | ???????????###### #######?????# # | | ???????????# / #????????????# # | | ???????????# # #????????????# # | | ???????????# + #????????????# # | | ???????????# # #????????????# # | | ???????????# # #????????????# # | | ???????????# # #????????????# # | | ???????????# # #????????????# # | | ???????????# # #????????????# # | | ???????????+ # #????????????# # | | ???????????# + #????????????###############/# | | ???????????# # #??????????????????????????? # | | ???????????+ # #??????????????????????????? # | | ???????????#### # ? #??????????????????????????? | | ???????????????## #???????????????????????????? | | ????????????????# #???????????????????????????? | | ????????????????# #????????????????????????????? | | ????????????????# ##???????????????????????????? | | ????????????????# %#???????????????????????????? | | ????????????????# ###########??????????????????? | | ????????????????+ # #??????????????????? | | ????????????????# # #??????????????????? | | ????????????????# # #??????????????????? | | ????????????????+ + @ #??????????????????? | | ????????????????# # "Y" #??????????????????? | | ????????????????# ? # """ #??????????????????? | | ????????????????# ###########??????????????????? | | ????????????????# #????????????????????????????? | | ????????????????# #????????????????????????????? | | ???????????????? ? ????????????????????????????? | | ??????????????? ? ????????????????????????????? | | ?????????????? ????????????????????????????? | | ?????????????? ????????????????????????????? | | ?????????????### ????????????????????????????? | | ???????????????## #????????????????????????????? | | ????????????????# ?????????????????????????????? | | ????????????????# ?????????????????????????????? | | ????????????????# ?????????????????????????????? | | ????????????????? ?????????????????????????????? | | ?????????????????????????????????????????????????? | | ?????????????????????????????????????????????????? | | ?????????????????????????????????????????????????? | | ?????????????????????????????????????????????????? | | ?????????????????????????????????????????????????? | | ?????????????????????????????????????????????????? | | ?????????????????????????????????????????????????? | | ?????????????????????????????????????????????????? | | ?????????????????????????????????????????????????? | +----------------------------------------------------+ Best States ------------- Heat Dissipation 25 Energy Generation 20 Energy Capacity 320 Matter Stores 300 Matter Capacity 300 Sight Range 17 Robot Scan Range 20 Terrain Scan Range 16 Terrain Scan Density 110 Armor Coverage 800 Phase Shifting 5 Evasion (%) 60 Armor Integrity Analysis 30 Offensive Hacking 5 Defensive Hacking 5 Item Schematics ----------------- None Robot Schematics ------------------ None Fabricated ------------ Nothing Alien Tech Used ----------------- None Achievements -------------- None Challenges ------------ None RPGLIKE | -11 -10 -10 -10 -8 --------- Run | Yrd Mat Min Sub Rec Levels Raised 4 | . 1 . 2 1 XP Earned 9495 | 3000 1745 1075 2050 1625 XP Spent 6000 | 2900 1600 . 1500 . Upgrades 14 | 10 2 . 2 . Propulsion Slot 1 | 1 . . . . Utility Slot 3 | 1 1 . 1 . Weapon Slot 2 | 1 1 . . . Mass Support 1 | 1 . . . . Inventory Capacity 2 | 2 . . . . Sight Range 1 | 1 . . . . Terrain Scan Density 1 | 1 . . . . Ranged Accuracy 1 | . . . 1 . Hack Attack % 1 | 1 . . . . Hack Defense % 1 | 1 . . . . Protomatter Created 310 | . 127 38 145 . Integrity Restored 864 | . 318 111 435 . Core 807 | . 261 111 435 . Parts 57 | . 57 . . . Protomatter Decayed 89 | . 16 10 63 . Game ------ Seed ArmoredPointyShifter Manual? 0 Play Time 00:36:09 Cumulative 586.8 hours Start 2024.03.11 @ 04:57:53 End 2024.03.11 @ 05:32:49 Sessions 1 Manual Loads 0 Difficulty Rogue Special Mode Winter2019/RPGLIKE Game No. 224 Rogue 202 Adventurer 3 Explorer 19 Win Type - Total 13 Types 8/2/1/1/0/1/0/0/0 Lore% 86 Gallery% 95 Achievement% 82 Wizard Run 0 Options --------- Layout 2 ASCII 0 Keyboard 0 Movement Numpad Keybinds 0 Fullscreen 2 Font 24/Smallcaps Map View 50x44 Zoom Use 0% Tactical HUD 1 Map Filters NONE Filters NONE Steam X RUN: 6224ff6d-1e60-463f-8554-f3ca64ebb0f1